[Event "Czech Championship Women 2022"]
[Site "Jaromerice nad Rokytnou"]
[Date "2022.05.24"]
[Round "1.5"]
[White "Richterova, Natasa"]
[Black "Zelbova, Lada"]
[Result "1-0"]
[ECO "B51"]
[WhiteElo "2181"]
[BlackElo "1967"]
[Annotator "TA"]
[PlyCount "161"]
[EventDate "2022.05.24"]
[EventType "tourn"]
[EventCountry "CZE"]
[SourceTitle "playchess.com"]
[Source "ChessBase"]
[SourceQuality "1"]
[TimeControl "40/5400+30:1800+30"]

{[%evp 10,161,4,8,22,26,43,35,50,66,55,8,21,2,42,44,43,40,45,44,68,74,47,56,59,51,81,75,119,122,118,101,109,114,131,81,77,49,93,77,78,38,30,-112,49,62,49,52,62,42,49,0,0,0,0,0,0,0,97,89,106,86,169,168,252,241,235,231,224,175,247,145,127,88,93,76,72,72,87,102,223,241,227,220,282,160,476,447,1164,584,1114,1110,883,297,670,294,1074,677,677,676,668,668,635,592,12180,9087,4678,3914,1268,866,1882,1018,1001,211,844,0,584,440,12846,831,29955,29955,29951,29956,29947,29953,29941,12380,29969,29969,29976,29977,29982,29977,29977,29978,29979,29980,29981,29982,29982,29983,29982,29983,29983,29984,29986,29987,29987,29988,29988,29989,29989,29990]} 1. e4 {[%emt 0:00:02]} c5 {[%emt 0:00:09]} 2. Nf3 {[%emt 0:00:08]} d6 {[%emt 0:00:06]} 3. Bb5+ {[%emt 0:00:05]} Nd7 {[%emt 0:00:06]} 4. O-O {[%emt 0:00:15]} a6 {[%emt 0:00:07]} 5. Bxd7+ {[%emt 0:00:35]} Bxd7 {[%emt 0:00:09]} 6. Re1 {[%emt 0:01:14]} e5 {[%emt 0:01:08] B51: Sicilian: Moscow Variation (3 Bb5+) without 3...Bd7.} 7. c3 {[%emt 0:01:38]} Qc7 {[%emt 0:09:15]} 8. d4 {[%emt 0:00:12]} Nf6 {[%emt 0:01:34] White is slightly better.} 9. Bg5 {[%emt 0:00:28]} Be7 {[%emt 0:01:00]} 10. h3 {[%emt 0:01:29] [#]} (10. dxe5 $14 dxe5 11. c4) 10... Rd8 $146 {[%emt 0:03:08]} ({Predecessor:} 10... O-O 11. Nbd2 b5 12. Bh4 Rfe8 13. Bg3 Bf8 14. a4 cxd4 15. cxd4 bxa4 16. dxe5 dxe5 17. Nxe5 Rxe5 {0-1 (40) Tarlev,K (2564)-Korchmar,V (2424) Chess.com INT 2018}) 11. Qe2 {[%emt 0:01:15]} O-O {[%emt 0:01:01]} 12. dxe5 {[%emt 0:01:34]} dxe5 {[%emt 0:00:13]} 13. c4 {[%emt 0:00:10]} Bc6 {[%emt 0:07:25]} 14. Nc3 {[%emt 0:00:10]} Nh5 {[%emt 0:10:44]} 15. Nd5 {[%emt 0:06:25]} Bxd5 {[%emt 0:02:14]} 16. exd5 {[%emt 0:07:18]} Bxg5 {[%emt 0:02:22]} 17. Nxg5 {[%emt 0:00:08]} Nf4 {[%emt 0:00:38]} 18. Qe4 {[%emt 0:04:08][%csl Gg5][%cal Re4h7]} (18. Qxe5 Qxe5 19. Rxe5 f6 $17) 18... Ng6 {[%emt 0:01:16]} 19. h4 {[%emt 0:03:32]} h6 {[%emt 0:15:31]} 20. h5 {[%emt 0:05:47]} hxg5 {[%emt 0:02:25]} 21. hxg6 {[%emt 0:00:15]} Rde8 {[%emt 0:00:25]} 22. gxf7+ {[%emt 0:00:51]} (22. b3 $142) 22... Qxf7 $16 {[%emt 0:00:10]} 23. Qe3 {[%emt 0:01:04] Active counter play!} Qf4 {[%emt 0:10:18]} 24. Rac1 {[%emt 0:07:06]} (24. Qxc5 Rc8 25. g3 Rxc5 $11) 24... Rf6 {[%emt 0:08:04]} 25. g3 {[%emt 0:01:47]} Qf5 {[%emt 0:02:18]} 26. Re2 {[%emt 0:04:53] [#]} (26. Qxc5 $2 e4 27. Qe3 Qh3 28. Qxg5 (28. g4 $2 Rf3 $19) 28... Rh6 29. Qxh6 Qxh6 $19) (26. Rcd1 $11) 26... Rh6 $2 {[%emt 0:03:48]} (26... e4 $1 $17 27. Kf1 (27. Qxc5 $2 Rh6 $19) 27... Qh3+ 28. Ke1 Rf3 29. Qxf3 exf3 30. Rxe8+ Kf7) 27. Qe4 $1 $14 {[%emt 0:00:14]} Qh3 {[%emt 0:01:05] Hoping for ...Qh2+.} 28. Qg2 $36 {[%emt 0:00:09][%mdl 2048] Inhibits Qh2+. White is pushing.} Qg4 {[%emt 0:02:13]} 29. Re4 {[%emt 0:00:21]} Qf5 {[%emt 0:00:30]} 30. Rc3 {[%emt 0:05:21]} (30. Re3 $14 {is more appropriate.}) 30... g4 $11 {[%emt 0:07:11]} 31. Rce3 {[%emt 0:02:13]} Rh5 {[%emt 0:02:02]} 32. f3 {[%emt 0:03:00]} gxf3 {[%emt 0:00:44]} 33. Qxf3 {[%emt 0:00:44]} Rf8 {[%emt 0:04:39]} (33... Qh3 34. Qg2 $14) (33... Qg6 $11) 34. Qxf5 $16 {[%emt 0:00:16]} Rhxf5 {[%emt 0:00:05][%mdl 4096] Endgame KRR-KRR} 35. Re2 {[%emt 0:00:48]} Re8 {[%emt 0:02:22] [#]} (35... Rf1+ $16 36. Kg2 Rc1) 36. Kg2 $1 $18 {[%emt 0:00:42]} g5 {[%emt 0:00:46]} (36... Re7 $142 37. g4 Rf6) 37. Kh3 {[%emt 0:13:56] Kg4 is the strong threat.} Kf7 {[%emt 0:00:12]} 38. Kg4 {[%emt 0:00:13]} Kg6 {[%emt 0:00:34]} 39. R4e3 {[%emt 0:00:07]} Re7 {[%emt 0:00:26]} (39... b5 $142 40. Rc2 bxc4) 40. d6 {[%emt 0:00:50]} ({White should play} 40. Rf3 $18 Rf6 41. Rxf6+ Kxf6 42. Rf2+ Kg6 43. Rf5) 40... Rd7 $16 {[%emt 0:00:33]} 41. Rxe5 {[%emt 0:30:05]} Rxd6 {[%emt 0:07:00]} 42. Rxf5 {[%emt 0:00:00] Intending Rd5 and mate.} Rd4+ {[%emt 0:00:36] [#]} 43. Rf4 $1 {[%emt 0:00:00]} gxf4 {[%emt 0:00:13]} 44. gxf4 {[%emt 0:00:00] Strongly threatening Re6+.} Rxc4 {[%emt 0:02:22] KR-KR} (44... b5 $16 {was worth a try.}) 45. Re6+ $18 {[%emt 0:00:00]} Kf7 {[%emt 0:06:08]} 46. Rb6 {[%emt 0:00:00]} Rc2 {[%emt 0:01:37]} 47. Kf5 {[%emt 0:00:00]} (47. Rxb7+ $18 Ke6 48. Rb6+ Kd7 49. a4 (49. Rxa6 Rxb2 50. f5 Rf2 $14)) 47... c4 $2 {[%emt 0:03:09]} (47... Ke7 $16 48. Rxb7+ Kd6) 48. Rxb7+ {[%emt 0:00:00]} Kg8 {[%emt 0:03:43]} (48... Ke8 $142 49. a4 Kd8) 49. Kg6 {[%emt 0:00:00][%cal Rb7b8]} Rg2+ {[%emt 0:00:09]} 50. Kf6 {[%emt 0:00:00]} Rc2 {[%emt 0:01:44]} 51. Rb8+ {[%emt 0:00:00]} Kh7 {[%emt 0:00:12]} 52. b3 {[%emt 0:00:00]} (52. f5 $142 c3 53. bxc3) 52... Rb2 $2 {[%emt 0:03:30]} (52... cxb3 53. axb3 Rc6+ 54. Kf7 Rc7+ 55. Ke6 a5) 53. Rb7+ {[%emt 0:00:00]} Kh6 {[%emt 0:00:24]} 54. Rb4 {[%emt 0:01:36]} c3 {[%emt 0:01:45]} 55. f5 {[%emt 0:01:09][%cal Rb4h4]} Kh5 {[%emt 0:02:12] Against Rh4+} 56. Rc4 {[%emt 0:00:13]} Rxa2 {[%emt 0:01:41]} 57. Rxc3 {[%emt 0:00:05] White wants to mate with Ke7.} Rf2 {[%emt 0:00:53]} 58. Rc4 {[%emt 0:04:24]} Rf3 {[%emt 0:01:18]} 59. Rb4 {[%emt 0:01:09]} a5 {[%emt 0:01:22]} 60. Rb5 {[%emt 0:00:05]} Kh6 {[%emt 0:00:28]} 61. Rb8 $2 {[%emt 0:00:45]} (61. Ke7 Re3+ 62. Kf7) 61... Kh7 {[%emt 0:00:36]} 62. Rb5 $2 {[%emt 0:01:34]} ({White must play} 62. Rb7+ $18 Kh8 63. Rb8+ Kh7 64. Rb7+ Kg8 65. Rb6) 62... Kg8 $2 {[%emt 0:00:18][%mdl 8192]} (62... Kh6 $11 {and Black stays safe.}) 63. Ke6 {[%emt 0:00:51] Black must now prevent Kd6.} Re3+ {[%emt 0:00:14]} (63... Kg7 $142 64. Rb7+ (64. Rxa5 Re3+ 65. Re5 Rxb3 $11) 64... Kg8) 64. Kd6 {[%emt 0:00:09]} (64. Kd5 $142 Rc3 65. Kd4 (65. Rxa5 Rxb3 66. Ke6 Rb6+ 67. Ke5 Kf7 $11)) 64... Rf3 {[%emt 0:00:39]} 65. Kc6 {[%emt 0:02:24]} Kf7 {[%emt 0:00:54]} 66. Kb6 {[%emt 0:00:10]} Kf6 {[%emt 0:00:44]} 67. Kxa5 {[%emt 0:00:07]} Ke7 {[%emt 0:00:17]} 68. b4 {[%emt 0:00:14][%cal Bb3b4,Bb4b5][%mdl 32] White threatens Rd5 and mate.} Kd7 {[%emt 0:00:34]} 69. Rc5 {[%emt 0:00:06] White mates.} Rf4 {[%emt 0:00:35]} 70. b5 {[%emt 0:00:30]} Rd4 {[%emt 0:00:39]} 71. Rc6 {[%emt 0:00:15]} Rd5 {[%emt 0:00:25]} 72. f6 {[%emt 0:00:09]} Rf5 {[%emt 0:00:22]} 73. Kb6 {[%emt 0:00:37]} Kd8 {[%emt 0:00:25]} 74. Rd6+ {[%emt 0:00:31]} Kc8 {[%emt 0:00:09]} 75. Kc6 {[%emt 0:00:06]} Rf1 {[%emt 0:00:30]} 76. b6 {[%emt 0:00:22]} Rc1+ {[%emt 0:00:17]} 77. Kd5 {[%emt 0:00:08]} Re1 {[%emt 0:00:31]} 78. f7 {[%emt 0:00:21]} Rf1 {[%emt 0:00:47]} 79. Ke6 {[%emt 0:00:06]} Re1+ {[%emt 0:00:55]} 80. Kf6 {[%emt 0:00:09]} Rf1+ {[%emt 0:00:30]} 81. Ke7 {[%emt 0:00:30] Weighted Error Value: White=0.47/Black=0.40} 1-0

[Event "Czech Championship Women 2022"]
[Site "Jaromerice nad Rokytnou"]
[Date "2022.05.24"]
[Round "2.1"]
[White "Pilsova, Karolina"]
[Black "Zelbova, Lada"]
[Result "1-0"]
[ECO "A30"]
[WhiteElo "2229"]
[BlackElo "1967"]
[Annotator "TA"]
[PlyCount "63"]
[EventDate "2022.05.24"]
[EventType "tourn"]
[EventCountry "CZE"]
[SourceTitle "playchess.com"]
[Source "ChessBase"]
[SourceQuality "1"]
[TimeControl "40/5400+30:1800+30"]

{[%evp 9,63,25,36,17,26,15,29,43,166,156,176,181,357,346,337,351,339,310,310,302,305,305,287,295,302,291,299,303,291,290,317,298,358,359,377,340,389,385,442,435,497,488,560,558,532,545,624,625,624,630,618,622,695,683,719,718]} 1. Nf3 {[%emt 0:00:04][%cal Bg1f3,Bf3d4,Bd4b5,Bb5c3][%mdl 32]} c5 {[%emt 0:00:37]} 2. c4 {[%emt 0:00:12]} Nc6 {[%emt 0:00:33]} 3. d4 {[%emt 0:00:32]} cxd4 {[%emt 0:00:51]} 4. Nxd4 {[%emt 0:00:07]} e5 {[%emt 0:00:48]} 5. Nb5 {[%emt 0:05:13]} d6 {[%emt 0:01:40]} 6. g3 {[%emt 0:05:13] A30: Symmetrical English: Double Fianchetto and Hedgehog.} Be6 {[%emt 0:01:59]} 7. b3 {[%emt 0:00:43] [#]} Rc8 $146 {[%emt 0:05:03]} ({Predecessor:} 7... a6 8. N5c3 h6 9. Bg2 Nf6 10. O-O Be7 11. Nd5 O-O 12. Nbc3 Re8 13. Be3 Nd7 14. Nxe7+ Qxe7 {1-0 (40) Maghsoodloo,P (2584)-Hirneise,T (2466) Doha 2016}) 8. Bg2 {[%emt 0:05:52] Prevents d5. White has an edge.} d5 {[%emt 0:11:09]} (8... Nf6 $14) 9. cxd5 $18 {[%emt 0:09:11]} Nb4 {[%emt 0:00:49] [#] And now ...Nc2+ would win.} 10. N5c3 {[%emt 0:04:49]} Nxd5 {[%emt 0:05:18]} (10... Bd7 11. Bb2 f5) 11. Bxd5 {[%emt 0:10:09]} Bxd5 {[%emt 0:16:52]} 12. Nxd5 {[%emt 0:00:09]} Qa5+ {[%emt 0:09:33]} 13. Ndc3 {[%emt 0:05:31]} Bb4 {[%emt 0:01:16]} 14. Bb2 {[%emt 0:03:23]} Rxc3 {[%emt 0:00:48]} 15. Nxc3 {[%emt 0:01:13]} Bxc3+ {[%emt 0:00:07]} 16. Bxc3 {[%emt 0:00:03]} Qxc3+ {[%emt 0:00:06]} 17. Kf1 {[%emt 0:00:05] [#] aiming for Rc1.} Qc6 {[%emt 0:00:39][%cal Rc6h1]} 18. f3 {[%emt 0:01:53]} Ne7 {[%emt 0:00:52]} 19. Qd3 {[%emt 0:06:30]} O-O {[%emt 0:09:22]} 20. Kg2 {[%emt 0:01:08]} Qb6 {[%emt 0:03:24]} 21. Rhd1 {[%emt 0:00:56]} Nc6 {[%emt 0:00:44]} 22. Rac1 {[%emt 0:01:32][%cal Ba1c1,Bc1c3,Bc3c5][%mdl 32]} h6 {[%emt 0:05:20]} 23. Qe4 {[%emt 0:06:01]} Kh8 {[%emt 0:04:13]} 24. Rd7 {[%emt 0:03:22] White is clearly winning.} f5 {[%emt 0:04:47]} 25. Qc4 {[%emt 0:02:03]} Qe3 {[%emt 0:03:34]} 26. Rc3 {[%emt 0:01:46]} Qb6 {[%emt 0:00:45]} 27. Qc5 {[%emt 0:02:12]} Qxc5 {[%emt 0:00:44]} 28. Rxc5 {[%emt 0:00:02]} Rb8 {[%emt 0:02:37]} 29. f4 {[%emt 0:00:58]} exf4 {[%emt 0:01:25]} 30. gxf4 {[%emt 0:00:40]} Re8 {[%emt 0:00:25]} 31. Kf2 {[%emt 0:01:19]} Re4 {[%emt 0:01:23]} 32. Rxf5 {[%emt 0:04:31] Black did not feel at home in the position after the opening.  Weighted Error Value: White=0.05 (flawless) /Black=0.39} 1-0

[Event "Czech Championship Women 2022"]
[Site "Jaromerice nad Rokytnou"]
[Date "2022.05.24"]
[Round "2.2"]
[White "Nemcova, Karin"]
[Black "Richterova, Natasa"]
[Result "0-1"]
[ECO "B12"]
[WhiteElo "2181"]
[BlackElo "2181"]
[Annotator "TA"]
[PlyCount "140"]
[EventDate "2022.05.24"]
[EventType "tourn"]
[EventCountry "CZE"]
[SourceTitle "playchess.com"]
[Source "ChessBase"]
[SourceQuality "1"]
[TimeControl "40/5400+30:1800+30"]

{[%evp 13,140,6,44,19,54,52,55,61,56,57,44,-20,-9,-57,-29,-40,-38,-49,-27,-25,-10,-12,-19,-18,20,1,27,19,21,9,39,35,41,14,28,14,90,2,6,0,16,-22,51,11,23,24,28,15,62,-74,-20,-59,0,0,0,0,13,14,12,27,35,9,10,-16,-8,-59,-57,-154,-165,-289,-267,-414,-412,-432,-429,-712,-572,-572,-573,-830,-789,-1916,-1915,-1722,-1592,-1860,-1235,-1128,-669,-822,-738,-2259,-2207,-1699,-1519,-29942,-29937,-29990,-29940,-12846,-29937,-29937,-29938,-29986,-29987,-29987,-5125,-29946,-29947,-29946,-12848,-5525,-5429,-5050,-713,-650,-395,-578,-395,-388,-388,-381,-374,-352,-347,-318,-189,-189,-8]} 1. e4 {[%emt 0:00:04]} c6 {[%emt 0:00:05][%cal Bc7c6,Bc6c5][%mdl 32]} 2. d4 {[%emt 0:00:04]} d5 {[%emt 0:00:05]} 3. e5 {[%emt 0:00:46]} Bf5 {[%emt 0:00:33]} 4. Nf3 {[%emt 0:00:23]} e6 {[%emt 0:00:17]} 5. Be2 {[%emt 0:00:28]} c5 {[%emt 0:00:16]} 6. c3 {[%emt 0:00:24]} Nc6 {[%emt 0:00:11]} 7. O-O {[%emt 0:02:32]} Rc8 {[%emt 0:01:37]} 8. a3 {[%emt 0:01:06] B12: Caro-Kann: Advance Variation.} Qb6 {[%emt 0:04:29]} 9. dxc5 {[%emt 0:07:18]} Bxc5 {[%emt 0:00:40]} 10. b4 {[%emt 0:01:00] White is slightly better.} Be7 {[%emt 0:00:01]} 11. Be3 {[%emt 0:00:41]} Qc7 {[%emt 0:00:06] [#]} 12. b5 $146 {[%emt 0:06:16]} (12. Qa4 $14) ({Predecessor:} 12. Nbd2 Bd8 13. Rc1 Nge7 14. Re1 O-O 15. Bf4 Ng6 16. Bg3 Ngxe5 17. Kh1 f6 18. b5 {1-0 (49) Mahrla,H (1626)-Wolfram,G (1548) Bad Woerishofen 2005}) 12... Na5 $1 $11 {[%emt 0:00:30]} (12... Nxe5 13. Nxe5 Qxe5 14. Bd4 $14) 13. Bd4 {[%emt 0:03:56]} (13. Qa4 $11 b6 14. Nbd2) 13... b6 {[%emt 0:00:45]} 14. Nbd2 {[%emt 0:00:26][%cal Oc3c4]} Nh6 {[%emt 0:01:38]} 15. Qa4 {[%emt 0:09:21]} Bg6 {[%emt 0:11:09]} 16. c4 $1 {[%emt 0:10:44]} O-O {[%emt 0:02:39]} 17. Rac1 {[%emt 0:02:42]} Rfd8 {[%emt 0:05:18]} 18. Bb2 {[%emt 0:09:40]} Bc5 {[%emt 0:11:34]} 19. cxd5 {[%emt 0:04:46]} exd5 {[%emt 0:00:19]} 20. Rfe1 {[%emt 0:02:37]} Qd7 {[%emt 0:02:06]} 21. Bd4 {[%emt 0:02:47]} (21. Nh4 {looks sharper.} Bf5 22. Nxf5 Qxf5 23. Qh4) 21... Nb7 {[%emt 0:00:37]} 22. Nb3 {[%emt 0:01:14]} (22. Qxa7 $2 Ra8 23. Bxc5 (23. e6 $2 fxe6 24. Bxc5 Rxa7 $19) 23... Rxa7 $19) 22... Nf5 {[%emt 0:03:40]} 23. h3 {[%emt 0:05:21]} Qe7 {[%emt 0:06:06]} 24. Bf1 {[%emt 0:05:02]} Ra8 {[%emt 0:03:54] [#]} ({Don't take} 24... Bxa3 25. Rxc8 Rxc8 26. Qxa7 $16) (24... Rc7 $11) 25. Ra1 {[%emt 0:04:02]} (25. Bxc5 $1 $16 Nxc5 26. Nxc5 bxc5 27. g4) 25... Qd7 {[%emt 0:03:13]} 26. Rac1 {[%emt 0:03:18][%cal Rd4c5]} Rdc8 {[%emt 0:01:29]} 27. g4 {[%emt 0:02:04] aiming for Bxc5.} Ne7 {[%emt 0:01:08]} (27... Nxd4 $11 28. Nfxd4 a6) 28. Ng5 {[%emt 0:01:51] Threatens to win with e6.} (28. Qa6 $5 {[%cal Re5e6]} Bxd4 29. Nfxd4 $11) 28... Qe8 {[%emt 0:02:15]} 29. f4 {[%emt 0:00:18]} h6 {[%emt 0:00:05]} 30. Nf3 {[%emt 0:00:11]} Be4 {[%emt 0:00:35]} (30... a6 $11) 31. Nbd2 {[%emt 0:01:56]} (31. Nfd2 $14 {stays ahead.}) 31... a6 {[%emt 0:02:34]} ({Better is} 31... Ng6 $17 32. Bxc5 Nxc5 33. Rxc5 Rxc5 34. Nxe4 dxe4 35. Qxe4 Rac8) 32. Qb3 {[%emt 0:03:12]} axb5 {[%emt 0:03:39]} (32... Bxf3 $15 33. Nxf3 Na5) 33. Bxb5 {[%emt 0:00:54]} Qd8 {[%emt 0:01:02]} 34. a4 {[%emt 0:00:35]} (34. Nxe4 $2 dxe4 35. Rcd1 Qc7 $19) 34... Bxd4+ {[%emt 0:05:06]} 35. Nxd4 {[%emt 0:00:06]} Rxc1 {[%emt 0:00:11]} 36. Rxc1 {[%emt 0:00:06]} Nc5 {[%emt 0:00:05]} 37. Qe3 {[%emt 0:04:59]} Nxa4 {[%emt 0:00:52]} 38. f5 {[%emt 0:00:49]} Nc5 {[%emt 0:00:29]} 39. f6 {[%emt 0:00:50]} (39. Rf1 $11) 39... Ng6 $15 {[%emt 0:01:50][%csl LRe5,LRf6]} 40. Rf1 {[%emt 0:04:11]} ({White should play} 40. Bc6 $15 Ra2 41. Nxe4 dxe4 42. Nf5) 40... Nxe5 $17 {[%emt 0:02:58]} 41. g5 {[%emt 0:30:48]} (41. Nxe4 {keeps fighting.} Nxe4 42. fxg7) 41... g6 {[%emt 0:31:06]} ({Avoid the trap} 41... Ra2 $2 42. gxh6 gxf6 43. Rf2 $19) 42. gxh6 {[%emt 0:00:08]} (42. Qf4 {was the only chance.} Qb8 43. gxh6) 42... Kh7 $19 {[%emt 0:00:19]} 43. Qg3 {[%emt 0:00:00]} Qd6 {[%emt 0:00:00] Hoping for ...Ra2.} 44. Qg5 {[%emt 0:00:00]} (44. h4 $142) 44... Ne6 {[%emt 0:00:00]} 45. Nxe6 {[%emt 0:00:00]} Qxe6 {[%emt 0:00:00]} 46. Qe3 {[%emt 0:00:00]} Qd6 {[%emt 0:00:00]} 47. Nxe4 {[%emt 0:00:00]} dxe4 {[%emt 0:00:00]} 48. Qxe4 {[%emt 0:00:00]} Qc5+ {[%emt 0:00:00]} 49. Rf2 {[%emt 0:00:00]} Ra1+ {[%emt 0:00:00]} 50. Bf1 {[%emt 0:00:00]} Ra2 {[%emt 0:00:00]} 51. Be2 {[%emt 0:00:00]} b5 {[%emt 0:00:00] Strongly threatening ...b4.} 52. h4 {[%emt 0:00:00]} b4 {[%emt 0:00:00] White must now prevent ...b3.} 53. h5 {[%emt 0:00:00]} b3 {[%emt 0:00:00]} 54. hxg6+ {[%emt 0:00:00]} Nxg6 {[%emt 0:00:00]} 55. Qb7 {[%emt 0:00:00]} Qg5+ {[%emt 0:00:00]} 56. Kh1 {[%emt 0:00:00]} Qh4+ {[%emt 0:00:00]} 57. Kg1 {[%emt 0:00:00]} Qg3+ {[%emt 0:00:00]} 58. Rg2 {[%emt 0:00:00]} Qe3+ {[%emt 0:00:00]} 59. Kh2 {[%emt 0:00:00]} Ra7 {[%emt 0:01:33]} (59... Qf4+ $142 60. Kh1 Ra1+ 61. Rg1 Qxh6+ 62. Kg2 Qg5+ 63. Kf2 Qxg1+ 64. Kf3 Qh1+ 65. Kf2 Qxb7 66. Bd3 b2 67. Bf5 Ra3 68. Kg1 b1=Q+ 69. Bxb1 Qxb1+ 70. Kh2 Qc2+ 71. Kh1 Ra1#) 60. Qb8 {[%emt 0:04:55]} Qf4+ {[%emt 0:00:25]} 61. Qxf4 {[%emt 0:00:36]} Nxf4 {[%emt 0:00:04] KRB-KRN} 62. Rg7+ {[%emt 0:00:52]} Kxh6 {[%emt 0:00:05] ( -> ...b2)} 63. Bg4 {[%emt 0:00:20]} b2 {[%emt 0:01:01]} (63... Ra2+ $142 64. Kh1 b2) 64. Bf5 {[%emt 0:00:06]} Nh5 {[%emt 0:02:40]} 65. Rg8 {[%emt 0:00:17]} (65. Rg2 $142 Rb7 66. Bb1) 65... Rb7 {[%emt 0:00:08]} 66. Bb1 {[%emt 0:00:24]} Nxf6 {[%emt 0:00:28]} 67. Rg3 {[%emt 0:00:56]} Nd5 {[%emt 0:01:16]} 68. Kg2 {[%emt 0:00:10]} Rb4 {[%emt 0:01:06]} 69. Kf2 {[%emt 0:00:56]} Kh5 {[%emt 0:02:35]} (69... Rf4+ $142 70. Kg2 Rh4) 70. Rf3 {[%emt 0:01:02] [#]} Rf4 $2 {[%emt 0:00:11][%mdl 32768] Weighted Error Value: White=0.85/Black=0.43. Loss on time!?} (70... Nf4 $1 $19 71. Ke1 Kg4) 0-1

[Event "Czech Championship Women 2022"]
[Site "Jaromerice nad Rokytnou"]
[Date "2022.05.24"]
[Round "2.3"]
[White "Petrova, Kristyna"]
[Black "Trasakova, Adela"]
[Result "1/2-1/2"]
[ECO "A11"]
[WhiteElo "2264"]
[BlackElo "1842"]
[Annotator "TA"]
[PlyCount "75"]
[EventDate "2022.05.24"]
[EventType "tourn"]
[EventCountry "CZE"]
[SourceTitle "playchess.com"]
[Source "ChessBase"]
[SourceQuality "1"]
[TimeControl "40/5400+30:1800+30"]

{[%evp 13,75,0,36,33,34,34,47,29,31,18,27,46,33,27,37,10,41,16,13,12,16,-49,-55,-58,9,6,12,8,95,88,362,90,115,24,73,81,81,28,22,22,20,22,17,27,61,16,115,130,127,122,118,10,10,0,31,0,0,0,0,0,0,0,0,0]} 1. Nf3 {[%emt 0:00:04]} d5 {[%emt 0:00:02]} 2. g3 {[%emt 0:00:10]} Nf6 {[%emt 0:00:03]} 3. Bg2 {[%emt 0:00:13]} c6 {[%emt 0:01:11]} 4. O-O {[%emt 0:00:30]} Bf5 {[%emt 0:00:34]} 5. c4 {[%emt 0:00:33]} e6 {[%emt 0:00:20]} 6. cxd5 {[%emt 0:01:02]} exd5 {[%emt 0:00:42]} 7. d3 {[%emt 0:00:32][%cal Bd2d3,Bd3e4][%mdl 32]} h6 {[%emt 0:06:26]} 8. Qb3 {[%emt 0:01:44] A11: English Opening: 1...c6.} Qb6 {[%emt 0:02:22]} 9. Qc2 {[%emt 0:00:35][%cal Oe2e4]} Be7 {[%emt 0:02:37] The main line 9...Be7 scores better than 9...Nbd7.} 10. Nc3 {[%emt 0:00:28] White is slightly better.} O-O {[%emt 0:01:11]} 11. e4 {[%emt 0:01:01]} dxe4 {[%emt 0:01:44]} 12. dxe4 {[%emt 0:00:15]} Bh7 {[%emt 0:02:02]} 13. Be3 {[%emt 0:09:20]} Qa5 {[%emt 0:00:48]} 14. h3 {[%emt 0:02:12]} Bb4 {[%emt 0:05:18] [#]} 15. Bd4 $146 {[%emt 0:26:31]} ({Predecessor:} 15. Nd4 Re8 16. Nb3 Qd8 17. Rad1 Qe7 18. f3 Na6 19. Bf2 Nc5 20. a3 Nxb3 21. Qxb3 {½-½ (49) Fressinet,L (2717)-Michalik,P (2557) Dubai 2014}) 15... Bxc3 {[%emt 0:02:44]} 16. Bxc3 {[%emt 0:00:40]} Bxe4 {[%emt 0:01:11]} 17. Qc1 {[%emt 0:20:33]} (17. Bxa5 Bxc2 18. Rfe1 Nbd7 $15) (17. Qb3 $11 Qb6 18. Bxf6 Qxb3 19. axb3 gxf6 20. Rfe1 Bxf3 21. Bxf3) 17... Qd8 $15 {[%emt 0:02:35]} 18. Qf4 {[%emt 0:04:25]} Bxf3 {[%emt 0:05:00]} (18... Nbd7 $15) 19. Bxf3 $11 {[%emt 0:02:01] This bishop pair is nice.} Nd5 {[%emt 0:02:06]} 20. Bxd5 {[%emt 0:05:02]} Qxd5 {[%emt 0:00:11]} (20... cxd5 $11 {keeps the balance.} 21. Rad1 Nc6) 21. Rfd1 {[%emt 0:00:06]} Qe6 {[%emt 0:07:29][%mdl 8192] [#]} (21... Qg5 $16) 22. Kh2 $2 {[%emt 0:07:53]} (22. Rd6 $1 $18 {is the precise move to win.} Qxh3 23. Re1 (23. Bxg7 Kxg7 24. Re1 Na6 $11)) 22... f6 {[%emt 0:09:06]} 23. Bb4 {[%emt 0:04:43]} (23. Rd6 $16 Qf7 24. Rad1) 23... Rc8 {[%emt 0:03:37]} (23... c5 $1 $11 24. Bxc5 Re8) 24. Re1 $16 {[%emt 0:00:06] White is more active.} Qd5 {[%emt 0:02:27]} 25. Re7 {[%emt 0:01:26]} (25. Rad1 $16 Qg5 26. Qc4+ Kh8 27. Re7) 25... Na6 $1 $11 {[%emt 0:01:56]} 26. Bc3 {[%emt 0:01:01][%cal Oe7g7] Rxg7+! would kill now.} ({Wrong is} 26. Rxb7 $2 c5 27. Rxg7+ Kxg7 $19) 26... Rf8 {[%emt 0:02:10][%cal Bc8f8,Bf8f7,Bf7d7][%mdl 32]} 27. Rxb7 {[%emt 0:02:22] Hoping for Qg4.} Nc5 {[%emt 0:01:37]} 28. Re7 {[%emt 0:00:33]} Rae8 {[%emt 0:07:38]} 29. Rae1 {[%emt 0:02:27]} Nd3 {[%emt 0:01:27]} (29... Rxe7 $11 {remains equal.} 30. Rxe7 Rf7 31. Re8+ Kh7) 30. Qg4 $16 {[%emt 0:00:41][%csl Ge7][%cal Rg4g7]} Rxe7 {[%emt 0:00:18]} 31. Rxe7 {[%emt 0:00:04][%csl Ge7][%cal Rg4g7]} Rf7 {[%emt 0:01:10] [#]} 32. Re8+ {[%emt 0:02:39]} ({White must play} 32. Qc8+ $1 $16 Kh7 33. Rxf7) 32... Kh7 $11 {[%emt 0:02:35]} 33. Qe2 {[%emt 0:01:07]} Rd7 {[%emt 0:03:57]} 34. Kg1 {[%emt 0:01:41]} (34. Rf8 $5 {[%cal Re2e8]} Rd8 35. Rxd8 Qxd8 36. Qe4+ Kh8 37. Kg2 $14 (37. Qxc6 Nxf2 38. Be1 Nd3 $11)) 34... Nc1 {[%emt 0:04:30] The position is equal.} 35. Qc2+ {[%emt 0:01:13]} Nd3 {[%emt 0:00:02]} 36. Qe2 {[%emt 0:00:18]} Nc1 {[%emt 0:00:05]} 37. Qc2+ {[%emt 0:00:51]} Nd3 {[%emt 0:00:03]} 38. Qe2 {[%emt 0:01:09] Weighted Error Value: White=0.33/Black=0.29 (precise)} 1/2-1/2